Cogmind - Beta 14 --- EXPLORER MODE // 2024.11.22 @ 00:49:51 Player: Nah Bohdi Result: Destroyed by as-51559 with Assembled Heavy Rifle Performance ------------- Evolutions (0) 0 Regions Visited (2) 400 Robots Destroyed (15) 75 Value Destroyed (391) 391 Prototype IDs (2) 40 Alien Tech Used (0) 0 Bonus (0) 0 TOTAL SCORE: 906 Bonus ------- None Cogmind --------- Core Integrity 0/250 Matter 280/300 Energy 260/265 System Corruption 1% Temperature Cool (0) Movement Walking (120) Location -10/Mines Parts ------- > --- POWER (1) -------- Improved Ion Engine > --- PROPULSION (2) --- Aluminum Leg Aluminum Leg > --- UTILITY (3) ------ Medium Storage Unit Targeting Computer Targeting Computer > --- WEAPON (2) ------- Makeshift Sword > --- INVENTORY (10) --- Aluminum Leg Aluminum Leg Aluminum Leg Propulsion Shielding Propulsion Shielding Weapon Shielding Mining Laser Hammer Peak State ------------ > --- POWER ------------ Improved Ion Engine > --- PROPULSION ------- Aluminum Leg Aluminum Leg > --- UTILITY ---------- Medium Storage Unit Targeting Computer Targeting Computer > --- WEAPON ----------- Beam Rifle Light Assault Rifle > --- INVENTORY -------- Aluminum Leg Aluminum Leg Aluminum Leg Aluminum Leg Targeting Computer Propulsion Shielding Propulsion Shielding Weapon Shielding Mining Laser Hammer [Rating: 11] Favorites ----------- Power Light Ion Engine Engine Light Ion Engine Propulsion Aluminum Leg Leg Aluminum Leg Utility Targeting Computer Storage Medium Storage Unit Processor Targeting Computer Weapon Light Assault Rifle Energy Gun Beam Rifle Ballistic Gun Light Assault Rifle Special Weapon Mining Laser Impact Weapon Hammer Slashing Weapon Makeshift Sword Build | -11 -10 -10 ------- Run | Yrd Mat Min Slots Evolved 1 | . 1 . Power . | . . . Propulsion . | . . . Utility 1 | . 1 . Weapon . | . . . Parts Attached 22 | 7 6 9 Power 2 | 1 . 1 Engine 2 | 1 . 1 Core . | . . . Reactor . | . . . Propulsion 7 | 2 2 3 Treads . | . . . Leg 7 | 2 2 3 Wheel . | . . . Hover . | . . . Flight . | . . . Utility 5 | 2 1 2 Device . | . . . Storage 1 | 1 . . Processor 4 | 1 1 2 Hackware . | . . . Protection . | . . . Artifact . | . . . Weapon 8 | 2 3 3 Energy Gun 1 | . . 1 Energy Cannon . | . . . Ballistic Gun 4 | 2 1 1 Ballistic Cannon . | . . . Launcher . | . . . Special Weapon 1 | . 1 . Impact Weapon 1 | . 1 . Slashing Weapon 1 | . . 1 Piercing Weapon . | . . . Special Melee Weapon . | . . . Unidentified Prototypes . | . . . Parts Lost 4 | . . 4 Power . | . . . Propulsion 1 | . . 1 Utility 1 | . . 1 Weapon 2 | . . 2 Highest Loss Streak 4 | . . 4 To Critical Strikes . | . . . Average Slot Usage (%) 99 | . 100 96 Engine 12 | . 12 12 Leg 25 | . 25 25 Storage 12 | . 12 12 Processor 24 | . 25 24 Energy Gun 2 | . . 7 Ballistic Gun 18 | . 20 14 Special Weapon 2 | . 3 . Peak Build Rating 11 | 7 9 11 Average Rating 8 | 4 8 10 On Entrance 5 | . 7 9 Naked Turns . | . . . Heaviest Build 21 | 16 16 21 Greatest Support 20 | 20 20 20 Greatest Overweight (x) 2 | . . 2 Average Overweight (x) . | . . . Largest Inventory Capacity 10 | 10 10 10 Average Capacity 9 | 8 10 10 Most Carried 10 | 5 10 10 Average Carried 6 | 2 5 9 Final Capacity 10 | 10 10 10 Final Carried 10 | 3 10 8 Class Distribution -------------------- 100% | Hacker-Mutant Dominant Class ---------------- Hacker-Mutant | -10/Materials Hacker-Mutant | -10/Mines Resources | -11 -10 -10 ----------- Run | Yrd Mat Min Matter Collected 555 | 232 234 89 Remotely . | . . . Salvage Created 614 | 88 402 124 Parts 26 | 5 14 7 Haulers Intercepted . | . . . Recyclers Shooed 1 | . 1 . Parts Field Recycled . | . . . Retrieved Matter . | . . . Parts Self-Destructed . | . . . Prevented . | . . . Kills | -11 -10 -10 ------- Run | Yrd Mat Min Combat Hostiles Destroyed 11 | . 8 3 Melee 2 | . 1 1 Guns 9 | . 7 2 Classes Destroyed 7 | 2 3 2 Tunneler 1 | 1 . . Recycler 2 | 1 1 . Watcher 2 | . 2 . Swarmer 2 | . 2 . Grunt 6 | . 6 . Sentry 2 | . . 2 Assembled 1 | . . 1 Best Kill Streak 4 | 2 4 2 Combat Bots Only 2 | . 2 2 Max Kills in Single Turn 1 | 1 1 1 Gunslinging . | . . . Exploded . | . . . Melee 1 | . 1 1 Uniques/NPCs Destroyed . | . . . Combat | -11 -10 -10 -------- Run | Yrd Mat Min Hostile Shots Fired 115 | . 38 77 Missed 33 | . 11 22 Damage Taken 907 | . 202 705 Core 256 | . 42 214 Absorbed by Shields . | . . . Ignored by Resistances 548 | . 127 421 Core Remaining (%) 100 | 100 . . Volleys Fired 45 | 5 32 8 Largest 2 | 2 2 2 Hottest 100 | 40 100 76 Shots Fired 87 | 10 61 16 Gun 84 | 10 58 16 Cannon . | . . . Launcher . | . . . Special 3 | . 3 . Kinetic 83 | 10 58 15 Thermal 4 | . 3 1 Explosive . | . . . Electromagnetic . | . . . Robot Hit Streak 30 | 9 30 20 Robot Miss Streak 1 | . 1 . Penetration Max . | . . . Secondary Targets . | . . . Shots Hit Robots 75 | 9 50 16 Core Hits 31 | 3 20 8 Critical Kills . | . . . Critical Parts Destroyed 2 | . 2 . Critical Strikes 2 | . 2 . Destroy 1 | . 1 . Smash 1 | . 1 . Melee Attacks 4 | . 3 1 Impact 3 | . 3 . Slashing 1 | . . 1 Piercing . | . . . Sneak Attacks . | . . . Combat Hostiles . | . . . Follow-up Attacks . | . . . Damage Inflicted 864 | 88 581 195 Guns 723 | 88 487 148 Cannons . | . . . Explosions . | . . . Melee 139 | . 92 47 Ramming 2 | . 2 . Kinetic 708 | 88 487 133 Thermal 15 | . . 15 Explosive . | . . . Electromagnetic . | . . . Impact 92 | . 92 . Slashing 47 | . . 47 Piercing . | . . . Highest Corruption 1 | . . 1 Average Corruption 1 | . . 1 Corruption Purged . | . . . Corruption Blocked . | . . . Overload Shots . | . . . Overflow Damage 52 | . 52 . Projectiles . | . . . Explosions . | . . . Melee 52 | . 52 . Knockbacks . | . . . Impact . | . . . Kinetic . | . . . Secondary . | . . . Self-Inflicted Damage . | . . . Shots . | . . . Rammed . | . . . Targets Rammed 1 | . 1 . Kicked 1 | . 1 . Crushed . | . . . Highest Temperature 114 | . 25 114 Average Temperature 24 | . 10 46 Received Heat Transfer 489 | . 177 312 Siege Activations . | . . . Robots Corrupted 1 | . 1 . Combat Hostiles . | . . . Parts Fried 2 | . 2 . Impact Corruptions 3 | . 3 . Robots Melted . | . . . Combat Hostiles . | . . . Parts Melted . | . . . Heat Transferred 37 | . . 37 Parts Sabotaged . | . . . Parts Stolen . | . . . Parts Stripped . | . . . Power Chain Reactions . | . . . Alert | -11 -10 -10 ------- Run | Yrd Mat Min Peak Influence 142 | 10 142 83 Initial 23 | . 4 23 Average 43 | 3 34 69 Maximum Alert Level . | . . . Low Security (%) 100 | 100 100 100 Level 1 . | . . . Level 2 . | . . . Level 3 . | . . . Level 4 . | . . . Level 5 . | . . . High Security . | . . . Max Security . | . . . Squads Dispatched 1 | . 1 . Investigation 1 | . 1 . Extermination . | . . . Reinforcement . | . . . Assault . | . . . Garrison . | . . . Intercept . | . . . Searches Triggered . | . . . Construction Impeded . | . . . Haulers Reinforced . | . . . Active Scanning Responses . | . . . Cargo Convoy Interrupts . | . . . Stealth | -11 -10 -10 --------- Run | Yrd Mat Min Distress Signals . | . . . Communications Jammed . | . . . Distress Signals . | . . . Times Spotted 38 | . 13 25 Peak Tracking Total 16 | . 4 16 Tactical Retreats 1 | . . 1 Traps | -11 -10 -10 ------- Run | Yrd Mat Min Traps Triggered . | . . . Indirectly . | . . . Trap Hack Attempts . | . . . Triggered . | . . . Disarmed . | . . . Reprogrammed . | . . . Reused . | . . . Traps Extracted . | . . . Installed . | . . . Triggered . | . . . Machines | -11 -10 -10 ---------- Run | Yrd Mat Min Machines Disabled . | . . . Max in Single Turn . | . . . Machines Repaired . | . . . Machines Dismantled . | . . . Machines Sabotaged . | . . . Overloaded Fab Kills . | . . . Hacking | -11 -10 -10 --------- Run | Yrd Mat Min Machines Accessed 8 | . 8 . Terminals 7 | . 7 . Fabricators . | . . . Repair Stations . | . . . Recycling Units 1 | . 1 . Scanalyzers . | . . . Garrison Access . | . . . Total Hacks 19 | . 19 . Successful 13 | . 13 . Failed 6 | . 6 . Catastrophic . | . . . Database Lockouts . | . . . Manual . | . . . Terminals 16 | . 16 . Fabricators . | . . . Repair Stations . | . . . Recycling Units 3 | . 3 . Scanalyzers . | . . . Garrison Access . | . . . Terminal Hacks 11 | . 11 . Prototype ID Bank 1 | . 1 . Branch Access Points 1 | . 1 . Alert Level 1 | . 1 . Unreport Threat 1 | . 1 . Locate Traps 1 | . 1 . Registered Components 1 | . 1 . Zone Layout 5 | . 5 . Fabricator Hacks . | . . . Repair Station Hacks . | . . . Recycling Unit Hacks 2 | . 2 . Retrieve Components 2 | . 2 . Scanalyzer . | . . . Garrison Access Hacks . | . . . Unauthorized Hacks . | . . . Terminals . | . . . Fabricators . | . . . Repair Stations . | . . . Recycling Units . | . . . Scanalyzers . | . . . Garrison Access . | . . . Data Cores Recovered . | . . . Used . | . . . Hacking Detections 3 | . 3 . Full Trace Events 3 | . 3 . Feedback Events . | . . . Feedback Blocked . | . . . Robot Schematics Acquired . | . . . Robots Built . | . . . Authchips . | . . . Time . | . . . Total Robot Build Rating . | . . . Part Schematics Acquired . | . . . Parts Built . | . . . Authchips . | . . . Time . | . . . Total Part Build Rating . | . . . Parts Repaired . | . . . Time . | . . . Parts Recycled . | . . . Recycled Matter . | . . . Retrieved Matter . | . . . Retrieved Components . | . . . Parts Scanalyzed . | . . . Part Schematics Acquired . | . . . Parts Damaged . | . . . Bothacking | -11 -10 -10 ------------ Run | Yrd Mat Min Used RIF Installer . | . . . Robots Hacked . | . . . Non-combat . | . . . Combat . | . . . Robot Hacks Applied . | . . . Relay Couplers Released . | . . . Fabnet Peak Effective % . | . . . Robots Rewired . | . . . Allies Hacked . | . . . Hacks Repelled . | . . . Allies | -11 -10 -10 -------- Run | Yrd Mat Min Total Allies . | . . . Largest Group . | . . . Highest-Rated Group . | . . . Highest-Rated Ally . | . . . Total Orders . | . . . Ally Attacks . | . . . Total Damage . | . . . Kills . | . . . Allies Corrupted . | . . . Allies Melted 1 | . . 1 Intel | -11 -10 -10 ------- Run | Yrd Mat Min Robot Analysis Total . | . . . Derelict Logs Recovered . | . . . Drone Launches . | . . . Drone Recoveries . | . . . Exploration | -11 -10 -10 ------------- Run | Yrd Mat Min Turns Passed 1362 | 70 880 412 Spaces Moved 893 | 44 623 226 Core 16 | 16 . . Treads . | . . . Legs 877 | 28 623 226 Wheels . | . . . Hover . | . . . Flight . | . . . Fastest Speed 50 | 50 120 120 Average Speed 129 | 94 120 161 Slowest Speed 260 | 120 120 260 Overloaded Moves . | . . . Propulsion Burnouts . | . . . Robots Hopped . | . . . Cave-ins Triggered . | . . . Exploration Rate (%) 55 | 3 99 63 Regions Visited 2 Branch Regions 1 Pre-discovered Areas . | . . . Known Exits Taken 2 | 1 1 . Unknown Exits Taken . | . . . Scrap Searched . | . . . Spaces Dug 3 | . 3 . Terrain Destroyed 3 | . 3 . Melee . | . . . Projectile 3 | . 3 . AOE . | . . . Terrain Rammed . | . . . Walls Destroyed . | . . . Machines Disabled . | . . . Actions | -11 -10 -10 --------- Run | Yrd Mat Min Total 1005 | 61 687 257 Wait 20 | . 12 8 Move 891 | 43 622 226 Hop . | . . . Pick Up 17 | 6 9 2 Fast Attach 5 | 4 . 1 Attach 7 | 3 1 3 Detach . | . . . Swap 10 | . 5 5 Drop 5 | . 2 3 Fire 45 | 5 32 8 Melee 4 | . 3 1 Ram . | . . . Kick 1 | . 1 . Crush . | . . . Escape Stasis . | . . . Rewire . | . . . Trap . | . . . Miscellaneous . | . . . Route ------- -11/Scrapyard -10/Materials (discovered 5 exits: *Mat x3 / *Min x2) -10/Mines (discovered 2 exits: *Mat x2) History --------- Turn | Location | Event 9 | -11/Scrapyard | Identified exit to Materials 9 | -11/Scrapyard | Discovered exit to Materials (range 14) 71 | -11/Scrapyard | Entered Materials 71 | -10/Materials | Evolved 1 slot: Utility x1 136 | -10/Materials | Identified exit to Mines 136 | -10/Materials | Discovered exit to Mines (range 8) 191 | -10/Materials | Discovered exit to Mines (range 9) 256 | -10/Materials | Identified exit to Materials 256 | -10/Materials | Discovered exit to Materials (range 9) 301 | -10/Materials | Build established: Hacker-Mutant 644 | -10/Materials | Discovered exit to Materials (range 7) 838 | -10/Materials | Discovered exit to Materials (range 10) 951 | -10/Materials | Entered Mines 967 | -10/Mines | Met a Derelict bent on vengeance 1198 | -10/Mines | Discovered exit to Materials (range 12) 1297 | -10/Mines | Assembled infested the area 1302 | -10/Mines | Assisted by a Guerilla fighting off Assembled 1325 | -10/Mines | Core integrity fell below 50% 1331 | -10/Mines | Core integrity fell below 20% 1352 | -10/Mines | A weapon hastily lodged in a ceiling crevice suddenly fell to the ground 1353 | -10/Mines | Discovered exit to Materials (range 14) 1359 | -10/Mines | Lost 4 parts (1n1u2w) 1363 | -10/Mines | Destroyed by as-51559 with Assembled Heavy Rifle Last Messages --------------- 01328_ as-78370 destroyed. 01332_ K-01 Serf collects debris. 01334_ The unstable cave ceiling collapses. 01334_ D-53 Grenadier destroyed. 01334_ K-01 Serf collects debris. 01335_ D-53 Grenadier destroyed. 01337_ K-01 Serf collects debris. 01338_ The unstable cave ceiling collapses. 01341_ U-05 Engineer destroyed. 01343_ Acquired 10 matter. 01352_ NQ-74D(g): "VENGEANCE!" 01352_ A Mak. Sword has been hastily shoved under some rubble with a note attached: "Here lies the sword of MA-1KR the Great. I think." 01353_ EXIT=FOUND: MATERIALS 01355_ Acquired Mak. Sword. 01356_ NQ-74D(g): "TASTE MY VENGEANCE!" 01356_ as-82135 destroyed. 01356_ NQ-74D(g) destroyed. 01363_ as-14747 destroyed. Map ----- +----------------------------------------------------+ | ??????????????????????????# ?????## | | ??????????????????????????# ?????# # | | ?????????????????????????## ##???# # | | ?????????????????????????# ##### # | | ?????????????????????????# ## | | ?????????????????????????# | | ?????????????????????????# ## | | ?????????????????????????# #### | | ????????????????????????# #??# ## | | ?????????????????????# ?# #### | | ???????????????????# #??# | | ??????????????????? ##??## | | ?????????????????? #######?# | | ???????????????????## ### # ### | | ????????????????????## #### # | | ?????????????????????## ## ### # | | ??????????????????????###?######### ! # | | ????????????????????????????????# =%] ## | | ????????????????????????????##### %= ## | | ??????????????????????####### # ! ## | | ??????????????????????# ! ! ### | | ??????????????????????# a%= |%* ##?# | | ?????????????###??????# %#####= ##??# | | ?????????????# ###??#!a#???## ##???? | | ?????????????# ###%=#????## #????? | | ??????????????# @[%##????# # #????? | | ??????????????### #????######## #????? | | ????????????????## #??????????? #????? | | ?????????????????# ##???????????% ????? | | ????????????# #???????????? ???? | | ????????????# #??????????? !#??? | | ?????????< ### #????????? ###$*#??? | | ???????? $ ???# #????????????=%#??? | | ???????? #????## #????????????###??? | | ???????? ???????# ######?????????????????? | | ????????? ????????## ##??????????????????????? | | ???????????????????###????????????????????????? | | ??????????????????????????????????????????????? | | ??????????????????????????????????????????????? | | ??????????????????????????????????????????????? | | ??????????????????????????????????????????????? | | ??????????????????????????????????????????????? | | ??????????????????????????????????????????????? | | ??????????????????????????????????????????????? | | | | | | | | | | | | | +----------------------------------------------------+ Best States ------------- Heat Dissipation 25 Energy Generation 12 Energy Capacity 265 Matter Stores 300 Matter Capacity 300 Sight Range 16 Terrain Scan Density 10 Resistance: KI 35 Resistance: TH 35 Resistance: EX 35 Resistance: EM 35 Resistance: I 35 Resistance: S 35 Resistance: P 35 Evasion (%) 55 Targeting Accuracy 10 Offensive Hacking 20 Item Schematics ----------------- None Robot Schematics ------------------ None Fabricated ------------ Nothing Alien Tech Used ----------------- None Achievements -------------- None Challenges ------------ None Game ------ Seed TransdimensionalFluxWings Manual? 0 Play Time 00:11:47 Cumulative 40.2 hours Start 2024.11.22 @ 00:38:15 End 2024.11.22 @ 00:49:51 Sessions 1 Manual Loads 0 Difficulty Explorer Special Mode None Game No. 20 Rogue 0 Adventurer 2 Explorer 18 Win Type - Total 0 Types 0/0/0/0/0/0/0/0/0 Lore% 19 Gallery% 31 Achievement% 26 Wizard Run 0 Options --------- Layout 1 ASCII 0 Keyboard 0 Movement Numpad Keybinds 0 Fullscreen 1 Font 24/Smallcaps Map View 50x35 Zoom Use 0% Tactical HUD 1 Map Filters NONE Filters NONE Steam 1 RUN: ed733ea0-a5ee-49a0-b58f-b2e4d4d4269c